bitfinex/quotes_SOLUSD_20260213
["timestamp","ask_amount","ask_price","bid_price","bid_amount"]
[1770960197983,0.1,78.51,78.493,0.475]
[1770960198283,0.1,78.52,78.501,0.47320888]
[1770960202184,0.1,78.52,78.503,0.47320888]
[1770960203685,0.1,78.53,78.504,0.47320888]
[1770960204071,0.1,78.53,78.506,0.47320888]
[1770960204396,0.24999999,78.529,78.506,0.47320888]
[1770960206290,0.1,78.53,78.511,0.47320888]
[1770960206671,0.1,78.53,78.521,0.47320888]
[1770960206871,0.1,78.53,78.52,4.28026302]
[1770960207087,0.1,78.54,78.52,4.28026302]
[1770960207390,0.1,78.54,78.53,4.28026302]
[1770960207585,0.1,78.54,78.51,4.28026302]
[1770960207884,0.48370134,78.539,78.51,4.28026302]
[1770960208090,0.48370134,78.539,78.511,48.24]
[1770960208282,0.48370134,78.539,78.512,44.57917261]
[1770960208971,0.48370134,78.539,78.513,0.47320888]
[1770960209171,0.48370134,78.539,78.513,0.43934238]
[1770960209372,0.1,78.54,78.52,4.28026302]
[1770960209807,0.1,78.54,78.52,4.2463975]
[1770960209988,0.1,78.54,78.52,4.11093137]
[1770960210882,0.55454202,78.54,78.52,4.11093137]
[1770960211487,0.55454202,78.54,78.52,4.59532489]
[1770960211691,0.55454202,78.54,78.515,48.28]
[1770960211692,0.55454202,78.54,78.519,12.73564939]
[1770960213270,0.45454202,78.539,78.519,12.73564939]
[1770960213466,0.45454202,78.539,78.513,0.48439352]
[1770960214685,0.45454202,78.539,78.514,12.73658201]
[1770960215885,0.45454202,78.539,78.515,0.45151353]
[1770960217500,0.45454202,78.539,78.516,12.73625757]
[1770960219693,0.45454202,78.539,78.516,0.45151353]
[1770960220085,1e-08,78.54,78.531,0.45151353]
[1770960220289,1e-08,78.54,78.531,0.07898904]
[1770960220502,0.1,78.55,78.531,0.07898904]
[1770960222102,0.1,78.55,78.531,12.73382485]
[1770960222306,0.1,78.55,78.532,0.45151353]
[1770960222794,0.1,78.55,78.541,0.45151353]
[1770960223501,0.5520453,78.56,78.541,0.45151353]
[1770960223691,0.1,78.56,78.541,0.45151353]
[1770960224405,0.1,78.56,78.543,0.45151353]
[1770960224701,0.1,78.57,78.551,0.45151353]
[1770960226609,0.1,78.57,78.553,0.45151353]
[1770960227909,0.1,78.57,78.561,0.45151353]
[1770960228606,13.17647238,78.589,78.561,0.45151353]
[1770960228815,0.4520453,78.579,78.555,0.45151353]
[1770960229009,0.4520453,78.579,78.554,61.27009649]
[1770960229189,0.4520453,78.579,78.554,12.73009649]
[1770960230019,0.4520453,78.579,78.549,0.45151353]
[1770960230203,0.4520453,78.579,78.55,4.73177655]
[1770960230517,0.4520453,78.579,78.551,0.45151353]
[1770960232332,0.4520453,78.579,78.552,12.73042061]
[1770960232705,0.4520453,78.579,78.553,0.45151353]
[1770960234405,0.4520453,78.579,78.561,0.45151353]
[1770960236116,0.4520453,78.579,78.555,0.45151353]
[1770960238914,0.4520453,78.579,78.551,48.58]
[1770960239123,0.4520453,78.577,78.551,48.58]
[1770960239325,0.4520453,78.577,78.552,12.73042061]
[1770960240210,0.4520453,78.569,78.552,12.73042061]
[1770960240919,0.47941363,78.559,78.512,0.46663102]
[1770960241095,0.47941363,78.549,78.521,0.46663102]
[1770960242518,0.47941363,78.549,78.531,0.46663102]
[1770960242710,0.47941363,78.549,78.513,48.64]
[1770960242711,0.47941363,78.549,78.526,0.46663102]
[1770960245308,4.28026302,78.54,78.521,12.73544615]
[1770960245515,0.47941363,78.529,78.513,48.64]
[1770960246024,0.47941363,78.529,78.514,12.73658201]
[1770960246434,4.28026302,78.55,78.521,0.46663102]
[1770960246632,0.47941363,78.549,78.521,0.46663102]
[1770960247342,0.47941363,78.549,78.522,0.46663102]
[1770960248121,0.47941363,78.539,78.521,12.73533833]
[1770960248422,0.47941363,78.539,78.517,12.73609536]
[1770960248806,0.47941363,78.539,78.518,0.46663102]
[1770960249931,0.47941363,78.539,78.52,0.46663102]
[1770960250232,0.47941363,78.539,78.519,12.73577095]
[1770960250738,0.47941363,78.539,78.519,13.20240197]
[1770960252230,0.47941363,78.539,78.52,0.46663102]
[1770960252722,0.47941363,78.539,78.514,12.73658201]
[1770960252924,0.47941363,78.539,78.515,0.46663102]
[1770960255330,0.47941363,78.539,78.516,12.73625757]
[1770960255513,0.47941363,78.539,78.517,0.46663102]
[1770960257832,0.47941363,78.539,78.511,13.20362678]
[1770960258025,0.47941363,78.537,78.512,0.46663102]
[1770960258523,0.47941363,78.537,78.511,12.73699576]
[1770960259231,0.47941363,78.537,78.511,13.20362678]
[1770960259629,0.47941363,78.529,78.501,12.73856534]
[1770960259839,0.47941363,78.509,78.47,0.2]
[1770960260039,0.47941363,78.479,78.47,0.2]
[1770960260217,0.47941363,78.479,78.461,12.74518249]
[1770960260416,0.47941363,78.522,78.471,0.46663102]
[1770960260734,0.47941363,78.499,78.471,0.46663102]
[1770960261114,0.47941363,78.489,78.462,0.46663102]
[1770960261743,0.47941363,78.489,78.461,44.60814625]
[1770960261744,0.47941363,78.489,78.464,0.46663102]
[1770960261940,0.47941363,78.496,78.464,0.46663102]
[1770960262444,4.28026302,78.49,78.464,0.46663102]
[1770960262646,0.47941363,78.489,78.464,0.46663102]
[1770960262830,0.47941363,78.499,78.471,0.46663102]
[1770960264440,0.47941363,78.499,78.472,0.46663102]
[1770960270645,0.47941363,78.499,78.474,0.4716853]
[1770960270849,0.46824598,78.519,78.481,0.4716853]
[1770960272042,0.46824598,78.518,78.483,0.4716853]
[1770960272445,0.46824598,78.509,78.482,12.74177518]
[1770960272643,0.46824598,78.509,78.483,0.4716853]
[1770960273248,0.46824598,78.499,78.471,12.74353117]
[1770960273747,0.46824598,78.499,78.472,0.4716853]
[1770960274131,0.46023154,78.489,78.467,0.49787486]
[1770960276351,0.46023154,78.489,78.461,12.7451855]
[1770960276352,0.46023154,78.489,78.468,13.24192338]
[1770960276532,0.46023154,78.489,78.469,0.49787486]
[1770960280158,0.46023154,78.489,78.471,0.49787486]
[1770960281249,0.46023154,78.504,78.473,0.49787486]
[1770960281850,4.28459537,78.5,78.473,0.49787486]
[1770960283362,4.74482691,78.5,78.475,0.49787486]
[1770960285540,4.74482691,78.5,78.476,12.74274937]
[1770960285860,4.74482691,78.5,78.477,0.49787486]
[1770960287059,0.46023154,78.509,78.481,0.49787486]
[1770960288063,0.46023154,78.509,78.483,0.49787486]
[1770960290056,0.46023154,78.509,78.48,4.28459537]
[1770960290057,0.46023154,78.509,78.485,0.49787486]
[1770960291256,0.46023154,78.515,78.487,0.49787486]
[1770960291461,0.46023154,78.515,78.486,12.7411258]
[1770960291462,0.46023154,78.515,78.491,0.49787486]
[1770960293366,0.46023154,78.52,78.493,0.49787486]
[1770960293562,0.46023154,78.52,78.5,4.28459537]
[1770960293763,0.46023154,78.52,78.501,0.49787486]
[1770960295048,0.46023154,78.519,78.5,12.73874039]
[1770960295248,0.46023154,78.519,78.492,31.85037965]
[1770960295249,0.46023154,78.519,78.496,12.73941651]
[1770960296252,0.46023154,78.519,78.493,0.49787486]
[1770960297050,0.46023154,78.509,78.484,0.49787486]
[1770960297248,0.46023154,78.499,78.47,0.49787486]
[1770960297552,0.46023154,78.479,78.438,13.24671439]
[1770960297752,0.46023154,78.459,78.438,13.24671439]
[1770960298572,0.46023154,78.459,78.438,0.49787486]
[1770960299555,0.46023154,78.459,78.439,12.74876018]
[1770960300260,0.46023154,78.459,78.43,4.48459537]
[1770960300261,0.46023154,78.465,78.441,0.49787486]
[1770960300462,4.28459537,78.47,78.441,0.49787486]
[1770960300775,0.49244197,78.471,78.441,0.49787486]
[1770960301375,0.49244197,78.471,78.45,4.28459537]
[1770960301580,0.49244197,78.484,78.461,0.4980489]
[1770960302059,0.49244197,78.49,78.471,0.4980489]
[1770960302259,0.49244197,78.499,78.473,0.4980489]
[1770960304560,0.49244197,78.499,78.475,0.4980489]
[1770960305474,0.49244197,78.508,78.475,0.4980489]
[1770960305784,0.49244197,78.499,78.474,12.74307413]
[1770960306559,0.49244197,78.499,78.471,0.4980489]
[1770960307860,0.49244197,78.499,78.473,0.4980489]
[1770960309186,0.49244197,78.509,78.481,0.4980489]
[1770960309479,4.28459537,78.49,78.469,0.4980489]
[1770960309667,0.49244197,78.492,78.469,0.4980489]
[1770960309974,0.49244197,78.489,78.468,12.74401564]
[1770960311275,0.49244197,78.487,78.462,0.4980489]
[1770960311479,0.49244197,78.479,78.455,0.4980489]
[1770960314266,0.49244197,78.479,78.457,0.4980489]
[1770960316086,0.49244197,78.485,78.461,0.4980489]
[1770960316582,0.49244197,78.496,78.461,0.4980489]
[1770960316887,0.49244197,78.489,78.461,0.4980489]
[1770960318486,0.49244197,78.489,78.463,0.4980489]
[1770960318670,0.49244197,78.479,78.458,62.54369521]
[1770960318866,12.73962143,78.496,78.46,4.28459537]
[1770960319074,0.49244197,78.497,78.461,0.4980489]
[1770960319784,0.49244197,78.508,78.481,0.4980489]
[1770960321179,13.23004255,78.508,78.482,0.4980489]
[1770960321889,0.49244197,78.507,78.482,0.4980489]
[1770960323179,0.49244197,78.505,78.482,0.4980489]
[1770960324494,0.49244197,78.505,78.484,0.4980489]
[1770960324885,4.28459537,78.51,78.484,0.4980489]
[1770960325200,0.49244197,78.509,78.484,0.4980489]
[1770960326594,0.49244197,78.509,78.486,0.4980489]
[1770960329499,0.49244197,78.509,78.488,0.4980489]
[1770960331697,0.47691955,78.515,78.49,0.47697369]
[1770960333888,0.47691955,78.515,78.491,12.74031417]
[1770960334085,0.47691955,78.515,78.492,0.45047451]
[1770960335306,0.49038605,78.526,78.501,0.45047451]
[1770960337690,0.49038605,78.525,78.501,0.45047451]
[1770960338506,0.49038605,78.519,78.501,0.45047451]
[1770960340486,0.49038605,78.539,78.511,0.45047451]
[1770960341496,0.49038605,78.555,78.521,0.45047451]
[1770960341694,0.49038605,78.555,78.531,0.45047451]
[1770960342218,0.49038605,78.563,78.541,0.45047451]
[1770960342419,0.49038605,78.563,78.543,0.45047451]
[1770960344901,17.01099534,78.57,78.545,0.45047451]
[1770960344902,0.49038605,78.569,78.545,0.45047451]
[1770960346900,0.49038605,78.569,78.547,0.45047451]
[1770960347101,0.49038605,78.569,78.538,12.73253649]
[1770960347323,0.49038605,78.569,78.539,0.45047451]
[1770960348426,0.49038605,78.559,78.534,0.45047451]
[1770960350419,0.49038605,78.564,78.541,0.45047451]
[1770960351325,0.49038605,78.579,78.551,0.45047451]
[1770960352029,0.49038605,78.578,78.551,0.45047451]
[1770960353107,12.72604639,78.579,78.551,0.45047451]
[1770960353108,4.28342257,78.57,78.551,0.45047451]
[1770960353312,0.49038605,78.569,78.551,0.45047451]
[1770960354525,0.49038605,78.559,78.531,0.45047451]
[1770960354723,0.49038605,78.559,78.532,0.45047451]
[1770960357516,0.49038605,78.559,78.534,0.45047451]
[1770960358423,0.49038605,78.549,78.529,12.73403854]
[1770960358612,0.49038605,78.549,78.522,0.45047451]
[1770960358814,0.49038605,78.549,78.52,62.09558301]
[1770960359721,0.49038605,78.539,78.52,62.09558301]
[1770960360046,0.49038605,78.539,78.52,12.73558301]
[1770960366924,0.49038605,78.539,78.52,0.4559192]
[1770960368949,0.47089746,78.537,78.496,31.84861386]
[1770960369126,0.47089746,78.519,78.479,0.4559192]
[1770960369327,0.47089746,78.509,78.481,0.4559192]
[1770960369733,4.28342257,78.5,78.481,0.4559192]
[1770960369940,0.47089746,78.499,78.481,0.4559192]
[1770960370126,0.47089746,78.499,78.478,12.74242462]
[1770960370127,4.28342257,78.52,78.491,0.4559192]
[1770960370326,4.28342257,78.52,78.48,4.28342257]
[1770960370327,4.28342257,78.53,78.501,0.4559192]
[1770960371050,4.28342257,78.53,78.503,0.4559192]
[1770960371051,17.48838414,78.53,78.503,0.4559192]
[1770960371563,0.47089746,78.537,78.503,0.4559192]
[1770960371845,0.47089746,78.537,78.511,0.4559192]
[1770960373044,0.47089746,78.537,78.513,0.4559192]
[1770960373752,13.20386806,78.537,78.513,0.4559192]
[1770960374327,0.47089746,78.536,78.513,0.4559192]
[1770960374549,0.47089746,78.539,78.513,0.4559192]
[1770960374726,31.82674286,78.551,78.512,12.73690646]
[1770960374727,4.75432003,78.56,78.531,0.4559192]
[1770960375046,0.47089746,78.559,78.53,4.28342257]
[1770960375258,0.47089746,78.559,78.531,12.73382485]
[1770960376126,0.47089746,78.558,78.531,12.73382485]
[1770960376832,0.47089746,78.558,78.532,0.4559192]
[1770960378326,0.47089746,78.558,78.534,0.4559192]
[1770960378847,0.47089746,78.569,78.534,0.4559192]
[1770960379542,0.47089746,78.569,78.533,12.73350056]
[1770960379543,0.47089746,78.567,78.536,0.4559192]
[1770960379744,0.47089746,78.567,78.541,0.4559192]
[1770960379951,0.47089746,78.567,78.535,12.73317629]
[1770960380444,0.47089746,78.567,78.535,13.18909549]
[1770960380845,0.47089746,78.559,78.535,12.73317629]
[1770960381542,0.47089746,78.559,78.535,13.18909549]
[1770960381741,0.47089746,78.559,78.536,0.4559192]
[1770960382951,0.47089746,78.559,78.538,0.4559192]
[1770960383330,0.47089746,78.549,78.478,0.4559192]
[1770960383635,0.47089746,78.519,78.481,0.4559192]
[1770960384237,4.28342257,78.51,78.481,0.4559192]
[1770960384533,4.75432003,78.51,78.481,0.4559192]
[1770960385447,4.75432003,78.51,78.482,44.59621314]
[1770960385755,4.75432003,78.51,78.483,0.4559192]
[1770960386850,0.47089746,78.51,78.485,0.4559192]
[1770960387653,35.02,78.523,78.484,12.74145048]
[1770960387654,0.47089746,78.499,78.484,12.74145048]
[1770960388153,0.47089746,78.509,78.484,12.74145048]
[1770960388360,0.47089746,78.509,78.479,12.74222236]
[1770960388659,0.47089746,78.509,78.48,0.4559192]
[1770960389662,0.47089746,78.509,78.481,13.19785673]
[1770960391252,0.4913635,78.499,78.472,12.74339891]
[1770960391861,0.4913635,78.489,78.472,12.74339891]
[1770960393248,0.4913635,78.489,78.465,12.74453578]
[1770960393440,4.28277924,78.51,78.452,49.58]
[1770960393441,0.4913635,78.479,78.452,49.58]
[1770960393950,0.4913635,78.479,78.45,13.23101865]
[1770960394557,0.4913635,78.479,78.451,0.46288264]
[1770960395564,0.4913635,78.479,78.453,0.46288264]
[1770960396850,4.28277924,78.48,78.455,0.46288264]
[1770960397753,4.74543289,78.48,78.455,0.46288264]
[1770960401870,0.46265365,78.479,78.457,0.46288264]
[1770960404266,0.46265365,78.479,78.448,0.46288264]
[1770960404569,4.28277924,78.48,78.447,0.46288264]
[1770960405272,4.74543289,78.48,78.447,0.46288264]
[1770960405660,4.74543289,78.48,78.449,0.46288264]
[1770960408877,0.46265365,78.479,78.451,0.46288264]
[1770960410655,0.46265365,78.479,78.44,4.28277924]
[1770960410656,12.74242462,78.478,78.432,0.46288264]
[1770960410855,12.74242462,78.478,78.431,12.75006056]
[1770960410856,4.28277924,78.47,78.441,0.46288264]
[1770960411074,0.46265365,78.479,78.451,0.46288264]
[1770960412074,4.28277924,78.48,78.451,0.46288264]
[1770960412371,66.82871315,78.497,78.461,0.46288264]
[1770960412372,4.74543289,78.49,78.461,0.46288264]
[1770960412754,0.46265365,78.489,78.463,0.46288264]
[1770960412954,0.46265365,78.495,78.463,0.46288264]
[1770960413171,0.46265365,78.489,78.463,0.46288264]
[1770960415384,0.46265365,78.479,78.464,12.7446982]
[1770960416077,0.46265365,78.479,78.453,12.74648515]
[1770960416575,0.46265365,78.469,78.448,62.46718276]
[1770960417480,0.46265365,78.469,78.442,0.46288264]
[1770960419882,0.46265365,78.469,78.443,12.74811009]
[1770960420080,0.46265365,78.459,78.443,12.74811009]
[1770960421087,0.46265365,78.459,78.438,12.74880138]
[1770960421382,0.45434426,78.475,78.441,0.47774229]
[1770960421768,0.45434426,78.475,78.438,12.74880138]
[1770960421769,0.45434426,78.469,78.438,12.74880138]
[1770960421964,0.45434426,78.449,78.43,0.2]
[1770960422376,0.45434426,78.439,78.42,0.2]
[1770960423287,0.45434426,78.429,78.409,12.75363739]
[1770960424189,0.45434426,78.429,78.4,0.2]
[1770960424190,0.45434426,78.429,78.405,13.23203091]
[1770960424591,0.45434426,78.429,78.406,0.47774229]
[1770960426700,0.45434426,78.419,78.4,0.2]
[1770960426994,0.45434426,78.409,78.4,0.2]
[1770960427505,0.45434426,78.409,78.384,0.47774229]
[1770960428491,0.45434426,78.399,78.38,0.2]
[1770960428684,4.7371235,78.41,78.381,0.47774229]
[1770960428870,13.20798223,78.409,78.381,0.47774229]
[1770960429074,0.45434426,78.408,78.381,0.47774229]
[1770960429885,0.45434426,78.399,78.38,0.2]
[1770960430091,0.45434426,78.406,78.381,0.47774229]
[1770960430795,0.45434426,78.406,78.382,0.47774229]
[1770960430991,4.28277924,78.4,78.382,0.47774229]
[1770960431579,0.45434426,78.389,78.362,0.47774229]
[1770960432098,0.33097704,78.379,78.36,0.2]
[1770960432509,0.33097704,78.379,78.361,0.47774229]
[1770960433491,4.28277924,78.39,78.362,0.47774229]
[1770960433798,4.28277924,78.39,78.361,12.76134484]
[1770960433799,4.28277924,78.4,78.371,0.47774229]
[1770960435382,4.28277924,78.4,78.373,0.47774229]
[1770960436782,0.33097704,78.405,78.375,0.47774229]
[1770960436997,4.28277924,78.4,78.375,0.47774229]
[1770960437999,0.33097704,78.389,78.368,12.76019767]
[1770960438904,0.33097704,78.389,78.369,0.47774229]
[1770960439088,4.28277924,78.39,78.369,0.47774229]
[1770960439899,4.28277924,78.4,78.371,0.47774229]
[1770960440399,35.04,78.406,78.371,0.47774229]
[1770960440607,4.28277924,78.4,78.371,0.47774229]
[1770960441505,4.28277924,78.4,78.372,12.75965906]
[1770960441689,4.28277924,78.4,78.373,0.47774229]
[1770960442706,4.61375628,78.41,78.375,0.47774229]
[1770960442900,0.33097704,78.416,78.381,0.47774229]
[1770960443104,4.28277924,78.41,78.381,0.47774229]
[1770960443409,0.33097704,78.416,78.381,0.47774229]
[1770960444095,4.28277924,78.41,78.381,0.47774229]
[1770960444286,0.33097704,78.409,78.377,49.92]
[1770960444491,0.33097704,78.399,78.377,49.92]
[1770960444692,0.33097704,78.399,78.378,0.47774229]
[1770960444892,0.33097704,78.399,78.377,49.92]
[1770960444893,4.28277924,78.4,78.38,0.47774229]
[1770960445614,0.33097704,78.416,78.381,0.47774229]
[1770960446002,0.33097704,78.423,78.391,0.47774229]
[1770960446394,0.33097704,78.429,78.391,0.47774229]
[1770960446805,0.33097704,78.428,78.391,0.47774229]
[1770960447190,0.33097704,78.428,78.393,0.47774229]
[1770960447401,4.28277924,78.43,78.393,0.47774229]
[1770960448013,17.03311719,78.43,78.393,0.47774229]
[1770960449017,17.04252296,78.43,78.393,0.47774229]
[1770960449805,17.04252296,78.43,78.395,0.47774229]
[1770960450409,4.29218501,78.43,78.395,0.47774229]
[1770960450620,4.29218501,78.43,78.394,44.64627394]
[1770960450621,4.29218501,78.43,78.401,0.49350284]
[1770960452100,4.29218501,78.43,78.403,0.49350284]
[1770960452922,0.33097704,78.429,78.403,0.49350284]
[1770960453510,4.29218501,78.42,78.403,0.49350284]
[1770960453730,0.33097704,78.429,78.403,0.49350284]
[1770960454031,4.29218501,78.43,78.403,0.49350284]
[1770960454210,4.29218501,78.43,78.404,12.7544513]
[1770960454524,4.29218501,78.43,78.405,0.46352824]
[1770960455028,0.33097704,78.435,78.405,0.46352824]
[1770960455405,4.29218501,78.43,78.405,0.46352824]
[1770960456304,4.29218501,78.43,78.407,0.46352824]
[1770960456500,0.33097704,78.429,78.407,0.46352824]
[1770960457426,0.33097704,78.429,78.408,13.21732887]
[1770960457626,0.33097704,78.429,78.409,0.46352824]
[1770960462537,0.33097704,78.429,78.41,12.75347532]
[1770960463333,0.33097704,78.429,78.41,12.42249828]
[1770960464316,0.33097704,78.429,78.402,31.88675684]
[1770960464317,4.29218501,78.43,78.411,0.5]
[1770960464651,4.29218501,78.43,78.405,13.25428862]
[1770960466438,4.29218501,78.43,78.406,0.5]
[1770960468125,35.08,78.436,78.406,0.5]
[1770960468335,35.08,78.436,78.408,0.5]
[1770960468519,4.29218501,78.43,78.408,0.5]
[1770960472134,4.29218501,78.43,78.409,12.75363797]
[1770960472337,4.29218501,78.43,78.409,13.25363797]
[1770960473827,4.29218501,78.43,78.41,0.5]
[1770960474526,4.29218501,78.43,78.412,0.5]
[1770960474727,35.08,78.436,78.412,0.5]
[1770960475342,12.74941033,78.435,78.412,0.5]
[1770960475844,35.08,78.436,78.412,0.5]
[1770960476854,35.08,78.436,78.414,0.5]
[1770960477325,4.29218501,78.44,78.414,0.5]
[1770960479122,4.29218501,78.44,78.416,0.5]
[1770960480358,35.18,78.443,78.416,0.5]
[1770960480654,4.29218501,78.44,78.417,12.75233686]
[1770960480827,4.29218501,78.44,78.418,0.5]
[1770960481445,12.7471383,78.449,78.418,0.5]
[1770960481950,12.7471383,78.449,78.42,0.5]
[1770960482152,4.29218501,78.44,78.42,0.5]
[1770960483345,4.29218501,78.47,78.431,0.5]
[1770960483857,39.53218501,78.47,78.431,0.5]
[1770960484029,12.74388612,78.469,78.433,0.5]
[1770960485050,48.00249557,78.478,78.441,0.5]
[1770960485451,12.74249557,78.478,78.441,0.5]
[1770960485833,12.74249557,78.478,78.451,0.5]
[1770960486033,35.26,78.479,78.453,0.5]
[1770960486242,12.74091426,78.488,78.453,0.5]
[1770960486445,35.26,78.485,78.453,0.5]
[1770960488052,4.29218501,78.48,78.455,0.5]
[1770960489144,48.04091426,78.488,78.455,0.5]
[1770960489337,12.74063881,78.489,78.461,0.5]
[1770960489539,48.04063881,78.489,78.461,0.5]
[1770960490449,4.29218501,78.48,78.461,0.5]
[1770960491254,48.04063881,78.489,78.461,0.5]
[1770960492966,4.29218501,78.48,78.461,0.5]
[1770960494860,0.1,78.49,78.462,0.5]
[1770960495259,17.13281787,78.49,78.456,0.5]
[1770960496164,4.29218501,78.48,78.456,0.5]
[1770960496951,17.03432877,78.48,78.456,13.24597294]
[1770960497162,4.29218501,78.48,78.457,0.5]
[1770960497743,35.36,78.484,78.448,12.74714548]
[1770960497744,4.29218501,78.47,78.448,12.74714548]
[1770960497950,4.29218501,78.47,78.449,0.5]
[1770960500174,35.38,78.475,78.449,0.5]
[1770960501061,4.29218501,78.47,78.449,0.5]
[1770960501257,35.4,78.469,78.435,0.5]
[1770960501456,4.29218501,78.46,78.435,0.5]
[1770960502259,4.29218501,78.46,78.437,0.5]
[1770960505152,4.29218501,78.46,78.439,0.5]
[1770960505554,35.46,78.462,78.439,0.5]
[1770960507476,4.29218501,78.46,78.439,0.5]
[1770960509078,4.28826027,78.46,78.441,0.5]
[1770960509575,35.46,78.462,78.441,0.5]
[1770960510678,4.28826027,78.46,78.441,0.5]
[1770960511671,35.46,78.462,78.441,0.5]
[1770960515285,35.62,78.462,78.441,0.5]
[1770960515778,4.28826027,78.45,78.426,0.5]
[1770960516279,35.64,78.449,78.426,0.5]
[1770960517283,12.74729757,78.448,78.426,0.5]
[1770960517858,4.28826027,78.46,78.428,0.5]
[1770960518065,35.66,78.459,78.431,0.5]
[1770960519083,4.28826027,78.45,78.431,0.5]
[1770960519384,4.28826027,78.45,78.428,0.5]
[1770960521987,4.28826027,78.45,78.43,0.5]
[1770960526286,4.28826027,78.44,78.411,12.75331267]
[1770960526490,4.28826027,78.44,78.412,0.5]
[1770960526871,35.74,78.444,78.412,0.5]
[1770960528371,35.76,78.457,78.421,0.5]
[1770960529387,4.28826027,78.46,78.421,0.5]
[1770960529705,40.04826027,78.46,78.421,0.5]
[1770960532996,12.74551039,78.459,78.423,0.5]
[1770960539193,4.28826027,78.45,78.425,0.5]
[1770960542008,35.9,78.454,78.427,0.5]
[1770960542885,35.9,78.454,78.429,0.5]
[1770960545901,35.9,78.454,78.43,12.75022312]
[1770960546098,35.9,78.454,78.431,0.5]
[1770960549610,35.9,78.454,78.433,0.5]
[1770960556824,35.9,78.454,78.435,0.5]
[1770960557506,35.9,78.454,78.421,31.87912765]
[1770960557507,48.64647546,78.454,78.431,0.5]
[1770960557904,35.9,78.454,78.431,0.5]
[1770960559213,4.28826027,78.45,78.432,0.5]
[1770960559417,35.9,78.454,78.432,0.5]
[1770960559611,35.9,78.454,78.431,12.74994505]
[1770960559612,4.28826027,78.45,78.431,12.74994505]
[1770960559817,4.28826027,78.45,78.431,0.5]
[1770960560124,35.9,78.454,78.433,0.5]
[1770960565131,36.32,78.463,78.435,0.5]
[1770960565439,55.33777261,78.51,78.434,12.74957288]
[1770960565440,4.28826027,78.48,78.441,0.5]
[1770960565616,36.32,78.479,78.441,0.5]
[1770960566210,36.32,78.479,78.451,0.5]
[1770960567030,4.28826027,78.47,78.451,0.5]
[1770960567732,4.28826027,78.47,78.449,12.74711924]
[1770960568738,12.74388612,78.469,78.447,0.5]
[1770960569919,4.28819567,78.47,78.447,0.5]
[1770960572042,4.28819567,78.46,78.44,0.5]
[1770960572725,4.28819567,78.45,78.436,0.5]
[1770960572922,4.28819567,78.45,78.431,12.75003027]
[1770960572923,4.28819567,78.45,78.432,0.5]
[1770960584446,4.28819567,78.45,78.428,0.5]
[1770960587452,4.28819567,78.45,78.429,13.25038569]
[1770960587629,4.28819567,78.45,78.43,0.5]
[1770960588137,4.28819567,78.45,78.426,0.5]
[1770960589226,4.28819567,78.44,78.426,0.5]
[1770960589431,4.28819567,78.44,78.42,0.5]
[1770960589645,40.92819567,78.44,78.42,0.5]
[1770960592254,36.64,78.44,78.422,0.5]
[1770960593135,36.68,78.445,78.422,0.5]
[1770960593549,36.68,78.446,78.422,0.5]
[1770960594552,36.68,78.446,78.424,0.5]
[1770960596064,36.68,78.446,78.425,12.75103602]
[1770960596859,36.68,78.446,78.426,0.5]
[1770960597158,31.85665729,78.477,78.43,4.28819567]
[1770960597367,12.7390679,78.499,78.471,0.5]
[1770960597552,6.66224219,78.487,78.471,0.5]
[1770960597863,12.74063881,78.489,78.471,0.5]
[1770960598360,36.7,78.488,78.461,0.5]
[1770960598940,4.28819567,78.48,78.461,0.5]
[1770960600249,4.28819567,78.48,78.436,0.5]
[1770960600250,4.28819567,78.47,78.436,0.5]
[1770960600454,36.72,78.469,78.437,0.5]
[1770960600646,36.72,78.468,78.437,0.5]
[1770960601244,4.28819567,78.47,78.441,0.5]
[1770960601458,41.02819567,78.47,78.441,0.5]
[1770960602970,41.02819567,78.47,78.443,0.5]
[1770960603144,53.77200472,78.47,78.443,0.5]
[1770960603465,17.03200472,78.47,78.443,0.5]
[1770960604966,12.74238581,78.479,78.451,0.5]
[1770960605157,12.74063881,78.489,78.451,0.5]
[1770960605359,4.28819567,78.48,78.451,0.5]
[1770960607356,4.28819567,78.48,78.453,0.5]
[1770960608067,12.74063881,78.489,78.453,0.5]
[1770960608264,4.28819567,78.48,78.453,0.5]
[1770960608758,4.28819567,78.47,78.455,0.5]
[1770960611885,0.1,78.49,78.461,0.5]
[1770960612076,0.1,78.49,78.471,0.5]
[1770960612379,0.1,78.49,78.47,4.28819567]
[1770960612380,12.73837197,78.503,78.472,0.47026409]